[Event "Titled Tuesday Blitz November 15 Late 2022"]
[White "Aggelis, Nikolaos"]
[Black "Horcajuelo Rocamora, Martin"]
[WhiteFideId "4213220"]
[BlackFideId "24573027"]
[WhiteElo "2189"]
[BlackElo "2094"]
[Result "0-1"]
[Round "04"]
[TimeControl "180+1"]
[Date "2022.11.16"]
[WhiteClock "0:00:13"]
[BlackClock "0:01:08"]

1. d4 {[%clk 0:03:00]}  c5 {[%clk 0:02:55]} 2. d5 {[%clk 0:03:00]}  Nf6 {[%clk 0:02:53]} 3. Nc3 {[%clk 0:03:00]}  e6 {[%clk 0:02:51]} 4. e4 {[%clk 0:03:00]}  exd5 {[%clk 0:02:51]} 5. exd5 {[%clk 0:03:00]}  d6 {[%clk 0:02:52]} 6. Be2 {[%clk 0:02:59]}  g6 {[%clk 0:02:51]} 7. Nf3 {[%clk 0:02:59]}  Bg7 {[%clk 0:02:51]} 8. O-O {[%clk 0:02:58]}  O-O {[%clk 0:02:52]} 9. Nd2 {[%clk 0:02:59]}  a6 {[%clk 0:02:52]} 10. a4 {[%clk 0:02:58]}  Nbd7 {[%clk 0:02:52]} 11. Nc4 {[%clk 0:02:52]}  Nb6 {[%clk 0:02:50]} 12. Ne3 {[%clk 0:02:41]}  Re8 {[%clk 0:02:45]} 13. a5 {[%clk 0:02:41]}  Nbd7 {[%clk 0:02:44]} 14. Nc4 {[%clk 0:02:37]}  Ne5 {[%clk 0:02:44]} 15. Nb6 {[%clk 0:02:37]}  Rb8 {[%clk 0:02:44]} 16. Bf4 {[%clk 0:02:24]}  h6 {[%clk 0:02:31]} 17. h3 {[%clk 0:02:24]}  g5 {[%clk 0:02:27]} 18. Bh2 {[%clk 0:02:23]}  Ng6 {[%clk 0:02:27]} 19. Re1 {[%clk 0:02:17]}  Bf5 {[%clk 0:02:26]} 20. Nc4 {[%clk 0:01:56]}  Bf8 {[%clk 0:02:24]} 21. g4 {[%clk 0:01:31]}  Bc8 {[%clk 0:02:22]} 22. Bf3 {[%clk 0:01:25]}  Rxe1+ {[%clk 0:02:16]} 23. Qxe1 {[%clk 0:01:26]}  Qc7 {[%clk 0:02:16]} 24. Qd2 {[%clk 0:01:22]}  Bd7 {[%clk 0:02:11]} 25. Re1 {[%clk 0:01:17]}  Re8 {[%clk 0:02:06]} 26. Rxe8 {[%clk 0:01:13]}  Bxe8 {[%clk 0:02:07]} 27. Qe3 {[%clk 0:01:12]}  Bb5 {[%clk 0:02:01]} 28. Nb6 {[%clk 0:01:02]}  Nd7 {[%clk 0:01:51]} 29. Nxd7 {[%clk 0:00:47]}  Qxd7 {[%clk 0:01:45]} 30. Ne4 {[%clk 0:00:44]}  Kh8 {[%clk 0:01:40]} 31. Nf6 {[%clk 0:00:38]}  Qd8 {[%clk 0:01:38]} 32. Nh5 {[%clk 0:00:36]}  Bg7 {[%clk 0:01:32]} 33. Nxg7 {[%clk 0:00:35]}  Kxg7 {[%clk 0:01:33]} 34. Qc3+ {[%clk 0:00:32]}  f6 {[%clk 0:01:30]} 35. Be4 {[%clk 0:00:31]}  Ne5 {[%clk 0:01:27]} 36. Bf5 {[%clk 0:00:28]}  Bd7 {[%clk 0:01:24]} 37. Bxe5 {[%clk 0:00:25]}  fxe5 {[%clk 0:01:23]} 38. Qd3 {[%clk 0:00:23]}  Bxf5 {[%clk 0:01:23]} 39. Qxf5 {[%clk 0:00:24]}  Qc7 {[%clk 0:01:17]} 40. Qe6 {[%clk 0:00:24]}  Qxa5 {[%clk 0:01:13]} 41. Qxd6 {[%clk 0:00:23]}  Qe1+ {[%clk 0:01:13]} 42. Kg2 {[%clk 0:00:24]}  Qe4+ {[%clk 0:01:13]} 43. Kf1 {[%clk 0:00:21]}  Qh1+ {[%clk 0:01:12]} 44. Ke2 {[%clk 0:00:21]}  Qe4+ {[%clk 0:01:13]} 45. Kd2 {[%clk 0:00:16]}  Qd4+ {[%clk 0:01:10]} 46. Ke1 {[%clk 0:00:15]}  Qe4+ {[%clk 0:01:09]} 47. Kd1 {[%clk 0:00:15]}  Qf3+ {[%clk 0:01:08]} 48. Kc1 {[%clk 0:00:14]}  Qe2 {[%clk 0:01:08]} 49. Qxc5 {[%clk 0:00:13]}  Qe1# {[%clk 0:01:08]} 0-1


[Site "https://www.chess.com"]

[Event "Titled Tuesday Blitz November 15 Late 2022"]
[White "Allahverdiyeva, Ayan"]
[Black "Sivakumar, Shaaketh"]
[WhiteFideId "13412590"]
[BlackFideId "30940176"]
[WhiteElo "2021"]
[BlackElo "2174"]
[Result "1-0"]
[Round "04"]
[TimeControl "180+1"]
[Date "2022.11.16"]
[WhiteClock "0:00:17"]
[BlackClock "0:00:04"]

1. e4 {[%clk 0:03:00]}  e6 {[%clk 0:03:00]} 2. d4 {[%clk 0:03:00]}  d5 {[%clk 0:02:53]} 3. Nd2 {[%clk 0:02:53]}  c5 {[%clk 0:02:51]} 4. exd5 {[%clk 0:02:51]}  cxd4 {[%clk 0:02:49]} 5. Ngf3 {[%clk 0:02:43]}  exd5 {[%clk 0:02:45]} 6. Bb5+ {[%clk 0:02:39]}  Nc6 {[%clk 0:02:41]} 7. Nxd4 {[%clk 0:02:32]}  Bd7 {[%clk 0:02:35]} 8. N2b3 {[%clk 0:02:21]}  Bd6 {[%clk 0:02:30]} 9. O-O {[%clk 0:02:16]}  Nge7 {[%clk 0:02:20]} 10. Re1 {[%clk 0:02:10]}  O-O {[%clk 0:02:18]} 11. Bg5 {[%clk 0:02:10]}  h6 {[%clk 0:02:06]} 12. Bh4 {[%clk 0:02:04]}  Qc7 {[%clk 0:01:57]} 13. Bxe7 {[%clk 0:01:54]}  Nxe7 {[%clk 0:01:54]} 14. Bxd7 {[%clk 0:01:53]}  Qxd7 {[%clk 0:01:55]} 15. Qf3 {[%clk 0:01:50]}  Rac8 {[%clk 0:01:43]} 16. c3 {[%clk 0:01:49]}  Ng6 {[%clk 0:01:42]} 17. h3 {[%clk 0:01:44]}  Ne5 {[%clk 0:01:38]} 18. Qf5 {[%clk 0:01:40]}  Qc7 {[%clk 0:01:29]} 19. Nb5 {[%clk 0:01:32]}  g6 {[%clk 0:01:19]} 20. Qf6 {[%clk 0:01:17]}  Qb6 {[%clk 0:00:45]} 21. Qxd6 {[%clk 0:01:06]}  Qxb5 {[%clk 0:00:42]} 22. Qxe5 {[%clk 0:01:02]}  Rc4 {[%clk 0:00:40]} 23. Nd4 {[%clk 0:00:54]}  Qxb2 {[%clk 0:00:38]} 24. Qxd5 {[%clk 0:00:52]}  Qxc3 {[%clk 0:00:37]} 25. Rad1 {[%clk 0:00:47]}  Rc5 {[%clk 0:00:33]} 26. Qxb7 {[%clk 0:00:46]}  Ra5 {[%clk 0:00:30]} 27. Nc6 {[%clk 0:00:32]}  Rxa2 {[%clk 0:00:27]} 28. Ne7+ {[%clk 0:00:30]}  Kg7 {[%clk 0:00:28]} 29. Nd5 {[%clk 0:00:24]}  Qc5 {[%clk 0:00:22]} 30. Rf1 {[%clk 0:00:20]}  Rd8 {[%clk 0:00:21]} 31. Qb3 {[%clk 0:00:17]}  Ra3 {[%clk 0:00:17]} 32. Qb2+ {[%clk 0:00:17]}  f6 {[%clk 0:00:10]} 33. Qxf6+ {[%clk 0:00:16]}  Kh7 {[%clk 0:00:11]} 34. Qxd8 {[%clk 0:00:16]}  Rb3 {[%clk 0:00:05]} 35. Nf6+ {[%clk 0:00:16]}  Kg7 {[%clk 0:00:04]} 36. Rd7+ {[%clk 0:00:17]} 1-0


[Site "https://www.chess.com"]

[Event "Titled Tuesday Blitz November 15 Late 2022"]
[White "Andreikin, Dmitry"]
[Black "Har-Zvi, Ronen"]
[WhiteFideId "4158814"]
[BlackFideId "2801485"]
[WhiteElo "2736"]
[BlackElo "2523"]
[Result "1/2-1/2"]
[Round "04"]
[TimeControl "180+1"]
[Date "2022.11.15"]
[WhiteClock "0:00:08"]
[BlackClock "0:00:07"]

1. d4 {[%clk 0:03:00]}  d5 {[%clk 0:02:55]} 2. c4 {[%clk 0:03:00]}  dxc4 {[%clk 0:02:55]} 3. e4 {[%clk 0:02:57]}  Nf6 {[%clk 0:02:55]} 4. e5 {[%clk 0:02:56]}  Nd5 {[%clk 0:02:56]} 5. Bxc4 {[%clk 0:02:56]}  Nc6 {[%clk 0:02:57]} 6. Nf3 {[%clk 0:02:50]}  Bg4 {[%clk 0:02:37]} 7. Nc3 {[%clk 0:02:49]}  e6 {[%clk 0:02:34]} 8. O-O {[%clk 0:02:39]}  Nb6 {[%clk 0:02:18]} 9. Bb5 {[%clk 0:02:38]}  Be7 {[%clk 0:02:18]} 10. h3 {[%clk 0:02:34]}  Bh5 {[%clk 0:02:18]} 11. Be3 {[%clk 0:02:28]}  O-O {[%clk 0:02:16]} 12. Bxc6 {[%clk 0:02:23]}  bxc6 {[%clk 0:02:17]} 13. Ne4 {[%clk 0:02:23]}  Qd5 {[%clk 0:01:53]} 14. Qc2 {[%clk 0:02:19]}  Bg6 {[%clk 0:01:41]} 15. Nfd2 {[%clk 0:02:19]}  f5 {[%clk 0:01:38]} 16. Nc3 {[%clk 0:02:08]}  Qd7 {[%clk 0:01:23]} 17. f4 {[%clk 0:02:07]}  Rfd8 {[%clk 0:01:18]} 18. Rac1 {[%clk 0:02:06]}  Rab8 {[%clk 0:01:15]} 19. a3 {[%clk 0:01:57]}  h6 {[%clk 0:01:15]} 20. b4 {[%clk 0:01:55]}  Kh7 {[%clk 0:01:14]} 21. Nd1 {[%clk 0:01:45]}  Be8 {[%clk 0:01:10]} 22. Nb3 {[%clk 0:01:44]}  Nd5 {[%clk 0:01:10]} 23. Bd2 {[%clk 0:01:40]}  Qc8 {[%clk 0:01:10]} 24. Na5 {[%clk 0:01:38]}  Qa6 {[%clk 0:01:03]} 25. Ne3 {[%clk 0:01:33]}  Nxe3 {[%clk 0:00:57]} 26. Bxe3 {[%clk 0:01:33]}  c5 {[%clk 0:00:58]} 27. dxc5 {[%clk 0:01:30]}  Rd3 {[%clk 0:00:58]} 28. Bd2 {[%clk 0:01:07]}  Rxa3 {[%clk 0:00:42]} 29. Ra1 {[%clk 0:01:06]}  Qd3 {[%clk 0:00:40]} 30. Qxd3 {[%clk 0:00:59]}  Rxd3 {[%clk 0:00:41]} 31. Be1 {[%clk 0:00:53]}  Bb5 {[%clk 0:00:41]} 32. Rf3 {[%clk 0:00:43]}  Rxf3 {[%clk 0:00:40]} 33. gxf3 {[%clk 0:00:44]}  Rd8 {[%clk 0:00:41]} 34. Nb7 {[%clk 0:00:37]}  Rd3 {[%clk 0:00:38]} 35. Bf2 {[%clk 0:00:26]}  a6 {[%clk 0:00:34]} 36. Rc1 {[%clk 0:00:15]}  Rxf3 {[%clk 0:00:26]} 37. Nd6 {[%clk 0:00:16]}  Rxf4 {[%clk 0:00:23]} 38. Nxb5 {[%clk 0:00:12]}  axb5 {[%clk 0:00:24]} 39. Rd1 {[%clk 0:00:11]}  Bh4 {[%clk 0:00:21]} 40. Bxh4 {[%clk 0:00:07]}  Rxh4 {[%clk 0:00:21]} 41. Rd7 {[%clk 0:00:07]}  Rxb4 {[%clk 0:00:21]} 42. Rxc7 {[%clk 0:00:08]}  Rc4 {[%clk 0:00:21]} 43. Rc6 {[%clk 0:00:05]}  b4 {[%clk 0:00:20]} 44. Rxe6 {[%clk 0:00:04]}  Rxc5 {[%clk 0:00:20]} 45. Re8 {[%clk 0:00:04]}  b3 {[%clk 0:00:17]} 46. Rb8 {[%clk 0:00:04]}  Rxe5 {[%clk 0:00:16]} 47. Rxb3 {[%clk 0:00:04]}  Kg6 {[%clk 0:00:15]} 48. Kg2 {[%clk 0:00:05]}  Kg5 {[%clk 0:00:14]} 49. Rb6 {[%clk 0:00:04]}  g6 {[%clk 0:00:14]} 50. Kg3 {[%clk 0:00:03]}  Re3+ {[%clk 0:00:14]} 51. Kg2 {[%clk 0:00:03]}  h5 {[%clk 0:00:14]} 52. h4+ {[%clk 0:00:03]}  Kxh4 {[%clk 0:00:11]} 53. Rxg6 {[%clk 0:00:03]}  f4 {[%clk 0:00:12]} 54. Rf6 {[%clk 0:00:02]}  Rg3+ {[%clk 0:00:12]} 55. Kf2 {[%clk 0:00:02]}  Kg5 {[%clk 0:00:13]} 56. Rf8 {[%clk 0:00:02]}  Ra3 {[%clk 0:00:13]} 57. Rg8+ {[%clk 0:00:03]}  Kf5 {[%clk 0:00:14]} 58. Rf8+ {[%clk 0:00:03]}  Kg4 {[%clk 0:00:14]} 59. Rg8+ {[%clk 0:00:03]}  Kh3 {[%clk 0:00:14]} 60. Rf8 {[%clk 0:00:04]}  Ra4 {[%clk 0:00:14]} 61. Kf3 {[%clk 0:00:03]}  h4 {[%clk 0:00:14]} 62. Rh8 {[%clk 0:00:04]}  Rb4 {[%clk 0:00:14]} 63. Rh7 {[%clk 0:00:04]}  Rb1 {[%clk 0:00:13]} 64. Kxf4 {[%clk 0:00:04]}  Rf1+ {[%clk 0:00:13]} 65. Ke3 {[%clk 0:00:04]}  Kg3 {[%clk 0:00:11]} 66. Rg7+ {[%clk 0:00:04]}  Kh2 {[%clk 0:00:12]} 67. Ke2 {[%clk 0:00:05]}  Rf6 {[%clk 0:00:11]} 68. Ke3 {[%clk 0:00:05]}  h3 {[%clk 0:00:11]} 69. Ke2 {[%clk 0:00:06]}  Kh1 {[%clk 0:00:12]} 70. Ke1 {[%clk 0:00:06]}  Rf5 {[%clk 0:00:10]} 71. Ke2 {[%clk 0:00:06]}  Kh2 {[%clk 0:00:11]} 72. Ke1 {[%clk 0:00:06]}  Rf3 {[%clk 0:00:11]} 73. Ke2 {[%clk 0:00:07]}  Rg3 {[%clk 0:00:11]} 74. Rf7 {[%clk 0:00:07]}  Kh1 {[%clk 0:00:09]} 75. Rf1+ {[%clk 0:00:07]}  Rg1 {[%clk 0:00:09]} 76. Rf8 {[%clk 0:00:07]}  Rg2+ {[%clk 0:00:09]} 77. Kf1 {[%clk 0:00:07]}  Kh2 {[%clk 0:00:09]} 78. Rh8 {[%clk 0:00:07]}  Rg5 {[%clk 0:00:07]} 79. Rh7 {[%clk 0:00:06]}  Rf5+ {[%clk 0:00:07]} 80. Ke2 {[%clk 0:00:06]}  Kg3 {[%clk 0:00:07]} 81. Rg7+ {[%clk 0:00:07]}  Kh4 {[%clk 0:00:08]} 82. Rh7+ {[%clk 0:00:07]}  Kg3 {[%clk 0:00:08]} 83. Rg7+ {[%clk 0:00:07]}  Kh2 {[%clk 0:00:08]} 84. Rg8 {[%clk 0:00:08]}  Rf4 {[%clk 0:00:07]} 85. Rg7 {[%clk 0:00:08]}  Rf5 {[%clk 0:00:07]} 1/2-1/2


[Site "https://www.chess.com"]

[Event "Titled Tuesday Blitz November 15 Late 2022"]
[White "Arbunic Castro, Giovanna"]
[Black "Urbina Perez, Juan Antonio"]
[WhiteFideId "3400549"]
[BlackFideId "2217368"]
[WhiteElo "1940"]
[BlackElo "2197"]
[Result "0-1"]
[Round "04"]
[TimeControl "180+1"]
[Date "2022.11.16"]
[WhiteClock "0:00:12"]
[BlackClock "0:01:22"]

1. e4 {[%clk 0:02:58]}  c5 {[%clk 0:02:59]} 2. g3 {[%clk 0:02:57]}  Nc6 {[%clk 0:02:57]} 3. Bg2 {[%clk 0:02:57]}  g6 {[%clk 0:02:57]} 4. Ne2 {[%clk 0:02:56]}  Bg7 {[%clk 0:02:58]} 5. c3 {[%clk 0:02:56]}  e6 {[%clk 0:02:57]} 6. O-O {[%clk 0:02:56]}  Nge7 {[%clk 0:02:56]} 7. d4 {[%clk 0:02:54]}  cxd4 {[%clk 0:02:57]} 8. cxd4 {[%clk 0:02:54]}  d5 {[%clk 0:02:56]} 9. exd5 {[%clk 0:02:49]}  Nxd5 {[%clk 0:02:57]} 10. Nbc3 {[%clk 0:02:48]}  O-O {[%clk 0:02:47]} 11. Nxd5 {[%clk 0:02:44]}  exd5 {[%clk 0:02:48]} 12. Be3 {[%clk 0:02:44]}  Bg4 {[%clk 0:02:44]} 13. f3 {[%clk 0:02:28]}  Be6 {[%clk 0:02:43]} 14. Nf4 {[%clk 0:02:27]}  Qd7 {[%clk 0:02:42]} 15. Nxe6 {[%clk 0:02:19]}  Qxe6 {[%clk 0:02:43]} 16. Re1 {[%clk 0:02:16]}  Rfe8 {[%clk 0:02:42]} 17. Qd2 {[%clk 0:02:14]}  Qf5 {[%clk 0:02:21]} 18. g4 {[%clk 0:02:06]}  Qd7 {[%clk 0:02:14]} 19. Rac1 {[%clk 0:02:04]}  Rxe3 {[%clk 0:02:07]} 20. Rxe3 {[%clk 0:01:59]}  Bxd4 {[%clk 0:02:08]} 21. Kf2 {[%clk 0:01:58]}  Re8 {[%clk 0:02:05]} 22. Re1 {[%clk 0:01:52]}  Rxe3 {[%clk 0:01:58]} 23. Rxe3 {[%clk 0:01:50]}  Qd8 {[%clk 0:01:58]} 24. Kg3 {[%clk 0:01:43]}  Qd6+ {[%clk 0:01:55]} 25. Kh3 {[%clk 0:01:38]}  Bxe3 {[%clk 0:01:52]} 26. Qxe3 {[%clk 0:01:37]}  d4 {[%clk 0:01:51]} 27. Qd3 {[%clk 0:01:29]}  Ne5 {[%clk 0:01:50]} 28. Qe4 {[%clk 0:01:25]}  d3 {[%clk 0:01:47]} 29. f4 {[%clk 0:01:12]}  Nc6 {[%clk 0:01:46]} 30. Bf3 {[%clk 0:00:53]}  d2 {[%clk 0:01:40]} 31. Bd1 {[%clk 0:00:52]}  Nb4 {[%clk 0:01:30]} 32. a3 {[%clk 0:00:44]}  Qd3+ {[%clk 0:01:28]} 33. Qxd3 {[%clk 0:00:41]}  Nxd3 {[%clk 0:01:29]} 34. Kg3 {[%clk 0:00:20]}  Nxb2 {[%clk 0:01:28]} 35. Kf2 {[%clk 0:00:19]}  Nxd1+ {[%clk 0:01:26]} 36. Ke2 {[%clk 0:00:19]}  Ne3 {[%clk 0:01:25]} 37. Kxd2 {[%clk 0:00:18]}  Nxg4 {[%clk 0:01:25]} 38. h3 {[%clk 0:00:17]}  Nf2 {[%clk 0:01:25]} 39. h4 {[%clk 0:00:16]}  Kg7 {[%clk 0:01:23]} 40. Ke3 {[%clk 0:00:15]}  Ng4+ {[%clk 0:01:22]} 41. Kd4 {[%clk 0:00:15]}  Kf6 {[%clk 0:01:21]} 42. Kd5 {[%clk 0:00:14]}  Ne3+ {[%clk 0:01:20]} 43. Kd6 {[%clk 0:00:13]}  Nc4+ {[%clk 0:01:20]} 44. Kc7 {[%clk 0:00:12]}  Nxa3 {[%clk 0:01:21]} 45. Kxb7 {[%clk 0:00:12]}  Kf5 {[%clk 0:01:21]} 46. Kxa7 {[%clk 0:00:12]}  Kxf4 {[%clk 0:01:22]} 0-1


[Site "https://www.chess.com"]

[Event "Titled Tuesday Blitz November 15 Late 2022"]
[White "Averjanov, Alexey"]
[Black "Foerster-Yialamas, Lucas"]
[WhiteFideId "14109867"]
[BlackFideId "30901774"]
[WhiteElo "2613"]
[BlackElo "2067"]
[Result "0-1"]
[Round "04"]
[TimeControl "180+1"]
[Date "2022.11.16"]
[WhiteClock "0:00:07"]
[BlackClock "0:00:25"]

1. d4 {[%clk 0:03:00]}  Nf6 {[%clk 0:02:58]} 2. c4 {[%clk 0:03:00]}  g6 {[%clk 0:02:57]} 3. Nc3 {[%clk 0:03:00]}  Bg7 {[%clk 0:02:56]} 4. e4 {[%clk 0:02:59]}  d6 {[%clk 0:02:57]} 5. Be2 {[%clk 0:02:59]}  Nbd7 {[%clk 0:02:56]} 6. Nf3 {[%clk 0:02:59]}  b6 {[%clk 0:02:56]} 7. O-O {[%clk 0:02:59]}  Bb7 {[%clk 0:02:55]} 8. Qc2 {[%clk 0:02:59]}  O-O {[%clk 0:02:54]} 9. e5 {[%clk 0:02:43]}  dxe5 {[%clk 0:02:53]} 10. dxe5 {[%clk 0:02:43]}  Ng4 {[%clk 0:02:51]} 11. e6 {[%clk 0:02:41]}  fxe6 {[%clk 0:02:52]} 12. Ng5 {[%clk 0:02:40]}  Rxf2 {[%clk 0:02:23]} 13. Rxf2 {[%clk 0:02:29]}  Nxf2 {[%clk 0:02:22]} 14. Nxe6 {[%clk 0:02:22]}  Qe8 {[%clk 0:02:20]} 15. Nxg7 {[%clk 0:02:21]}  Qf7 {[%clk 0:02:15]} 16. Be3 {[%clk 0:02:00]}  Nh3+ {[%clk 0:01:58]} 17. gxh3 {[%clk 0:02:00]}  Qxg7 {[%clk 0:01:58]} 18. Rf1 {[%clk 0:01:56]}  Ne5 {[%clk 0:01:37]} 19. Nd5 {[%clk 0:01:50]}  c6 {[%clk 0:00:55]} 20. Nf4 {[%clk 0:01:38]}  Bc8 {[%clk 0:00:55]} 21. Qc3 {[%clk 0:01:25]}  c5 {[%clk 0:00:50]} 22. Nd5 {[%clk 0:01:19]}  Bb7 {[%clk 0:00:41]} 23. Bf4 {[%clk 0:01:16]}  Nc6 {[%clk 0:00:37]} 24. Qxg7+ {[%clk 0:01:15]}  Kxg7 {[%clk 0:00:38]} 25. Nc7 {[%clk 0:01:11]}  Rc8 {[%clk 0:00:37]} 26. Ne6+ {[%clk 0:01:11]}  Kg8 {[%clk 0:00:35]} 27. Bh6 {[%clk 0:01:10]}  Ne5 {[%clk 0:00:32]} 28. Bg7 {[%clk 0:00:58]}  Nf7 {[%clk 0:00:30]} 29. Bc3 {[%clk 0:00:54]}  a6 {[%clk 0:00:30]} 30. Bf3 {[%clk 0:00:49]}  Bxf3 {[%clk 0:00:28]} 31. Rxf3 {[%clk 0:00:48]}  b5 {[%clk 0:00:29]} 32. b3 {[%clk 0:00:46]}  bxc4 {[%clk 0:00:26]} 33. bxc4 {[%clk 0:00:46]}  Nd6 {[%clk 0:00:27]} 34. Rf4 {[%clk 0:00:41]}  h6 {[%clk 0:00:26]} 35. Be5 {[%clk 0:00:40]}  g5 {[%clk 0:00:25]} 36. Rg4 {[%clk 0:00:34]}  Kf7 {[%clk 0:00:26]} 37. Bxd6 {[%clk 0:00:25]}  exd6 {[%clk 0:00:27]} 38. Re4 {[%clk 0:00:25]}  Re8 {[%clk 0:00:26]} 39. Nxc5 {[%clk 0:00:15]}  dxc5 {[%clk 0:00:25]} 40. Rxe8 {[%clk 0:00:15]}  Kxe8 {[%clk 0:00:26]} 41. Kg2 {[%clk 0:00:15]}  Ke7 {[%clk 0:00:26]} 42. h4 {[%clk 0:00:15]}  Ke6 {[%clk 0:00:18]} 43. hxg5 {[%clk 0:00:15]}  hxg5 {[%clk 0:00:18]} 44. Kf3 {[%clk 0:00:14]}  Ke5 {[%clk 0:00:18]} 45. Kg4 {[%clk 0:00:14]}  Kf6 {[%clk 0:00:18]} 46. Kh5 {[%clk 0:00:12]}  Kf5 {[%clk 0:00:18]} 47. h3 {[%clk 0:00:12]}  Kf6 {[%clk 0:00:17]} 48. Kh6 {[%clk 0:00:11]}  Kf5 {[%clk 0:00:17]} 49. Kg7 {[%clk 0:00:09]}  g4 {[%clk 0:00:17]} 50. hxg4+ {[%clk 0:00:09]}  Kxg4 {[%clk 0:00:18]} 51. Kf6 {[%clk 0:00:09]}  Kf4 {[%clk 0:00:19]} 52. Ke6 {[%clk 0:00:10]}  Ke4 {[%clk 0:00:20]} 53. Kd6 {[%clk 0:00:10]}  Kd4 {[%clk 0:00:21]} 54. Kc6 {[%clk 0:00:10]}  Kxc4 {[%clk 0:00:21]} 55. Kb6 {[%clk 0:00:10]}  Kd4 {[%clk 0:00:21]} 56. Kxa6 {[%clk 0:00:10]}  c4 {[%clk 0:00:22]} 57. a4 {[%clk 0:00:10]}  c3 {[%clk 0:00:23]} 58. a5 {[%clk 0:00:11]}  c2 {[%clk 0:00:24]} 59. Kb7 {[%clk 0:00:11]}  c1=Q {[%clk 0:00:24]} 60. a6 {[%clk 0:00:12]}  Qb2+ {[%clk 0:00:25]} 61. Ka8 {[%clk 0:00:12]}  Qc3 {[%clk 0:00:24]} 62. Kb8 {[%clk 0:00:09]}  Qb4+ {[%clk 0:00:24]} 63. Ka8 {[%clk 0:00:08]}  Qc5 {[%clk 0:00:25]} 64. a7 {[%clk 0:00:07]}  Qc8# {[%clk 0:00:25]} 0-1


[Site "https://www.chess.com"]

[Event "Titled Tuesday Blitz November 15 Late 2022"]
[White "Babazada, Khazar"]
[Black "Hakobyan, Aram"]
[WhiteFideId "13413554"]
[BlackFideId "13306677"]
[WhiteElo "2359"]
[BlackElo "2563"]
[Result "1/2-1/2"]
[Round "04"]
[TimeControl "180+1"]
[Date "2022.11.15"]
[WhiteClock "0:00:14"]
[BlackClock "0:00:03"]

1. d4 {[%clk 0:03:00]}  Nf6 {[%clk 0:03:00]} 2. c4 {[%clk 0:03:01]}  e6 {[%clk 0:03:00]} 3. Nc3 {[%clk 0:03:01]}  Bb4 {[%clk 0:03:00]} 4. e3 {[%clk 0:03:01]}  Bxc3+ {[%clk 0:03:01]} 5. bxc3 {[%clk 0:03:01]}  c5 {[%clk 0:03:01]} 6. Bd3 {[%clk 0:03:01]}  d6 {[%clk 0:03:01]} 7. Ne2 {[%clk 0:03:01]}  Nc6 {[%clk 0:03:02]} 8. O-O {[%clk 0:03:01]}  e5 {[%clk 0:03:02]} 9. d5 {[%clk 0:02:55]}  Ne7 {[%clk 0:03:02]} 10. e4 {[%clk 0:02:55]}  Ng6 {[%clk 0:02:57]} 11. Ng3 {[%clk 0:02:34]}  O-O {[%clk 0:02:57]} 12. Nf5 {[%clk 0:02:34]}  Bxf5 {[%clk 0:02:55]} 13. exf5 {[%clk 0:02:35]}  Ne7 {[%clk 0:02:55]} 14. Bg5 {[%clk 0:02:34]}  Kh8 {[%clk 0:02:48]} 15. Bxf6 {[%clk 0:02:30]}  gxf6 {[%clk 0:02:49]} 16. Qh5 {[%clk 0:02:30]}  Rg8 {[%clk 0:02:42]} 17. Qh6 {[%clk 0:02:30]}  Qf8 {[%clk 0:02:16]} 18. Qxf6+ {[%clk 0:02:30]}  Qg7 {[%clk 0:02:17]} 19. Qxg7+ {[%clk 0:02:26]}  Kxg7 {[%clk 0:02:18]} 20. f4 {[%clk 0:02:25]}  Kf6 {[%clk 0:02:15]} 21. fxe5+ {[%clk 0:02:21]}  dxe5 {[%clk 0:02:15]} 22. Be4 {[%clk 0:02:21]}  Nc8 {[%clk 0:02:15]} 23. d6 {[%clk 0:02:10]}  Nxd6 {[%clk 0:02:16]} 24. Bd5 {[%clk 0:02:10]}  e4 {[%clk 0:02:14]} 25. Rf4 {[%clk 0:02:02]}  Rae8 {[%clk 0:02:14]} 26. Re1 {[%clk 0:01:56]}  Re5 {[%clk 0:02:15]} 27. Rh4 {[%clk 0:01:54]}  Kg7 {[%clk 0:01:12]} 28. f6+ {[%clk 0:01:45]}  Kxf6 {[%clk 0:01:11]} 29. Rxh7 {[%clk 0:01:44]}  Ke7 {[%clk 0:01:01]} 30. a4 {[%clk 0:01:35]}  Rg4 {[%clk 0:00:38]} 31. Re3 {[%clk 0:01:27]}  Rf4 {[%clk 0:00:33]} 32. h4 {[%clk 0:01:07]}  b6 {[%clk 0:00:26]} 33. g3 {[%clk 0:00:59]}  Rg4 {[%clk 0:00:26]} 34. Kg2 {[%clk 0:00:53]}  Kf8 {[%clk 0:00:24]} 35. Rh8+ {[%clk 0:00:53]}  Kg7 {[%clk 0:00:23]} 36. Kh3 {[%clk 0:00:47]}  Rg6 {[%clk 0:00:20]} 37. Ra8 {[%clk 0:00:43]}  Nf5 {[%clk 0:00:20]} 38. Rxe4 {[%clk 0:00:42]}  Rxg3+ {[%clk 0:00:20]} 39. Kh2 {[%clk 0:00:42]}  Re3 {[%clk 0:00:20]} 40. Rxe5 {[%clk 0:00:35]}  Rxe5 {[%clk 0:00:21]} 41. Rxa7 {[%clk 0:00:35]}  Nd6 {[%clk 0:00:20]} 42. Rd7 {[%clk 0:00:35]}  Re2+ {[%clk 0:00:19]} 43. Kg1 {[%clk 0:00:34]}  Nf5 {[%clk 0:00:13]} 44. Rxf7+ {[%clk 0:00:34]}  Kg6 {[%clk 0:00:14]} 45. Rb7 {[%clk 0:00:26]}  Ne3 {[%clk 0:00:09]} 46. Rxb6+ {[%clk 0:00:21]}  Kf5 {[%clk 0:00:10]} 47. Re6 {[%clk 0:00:21]}  Kf4 {[%clk 0:00:10]} 48. a5 {[%clk 0:00:18]}  Ra2 {[%clk 0:00:07]} 49. Re4+ {[%clk 0:00:15]}  Kf3 {[%clk 0:00:07]} 50. Re6+ {[%clk 0:00:14]}  Kf4 {[%clk 0:00:07]} 51. Re4+ {[%clk 0:00:13]}  Kf3 {[%clk 0:00:08]} 52. Re6+ {[%clk 0:00:14]}  Kf4 {[%clk 0:00:03]} 1/2-1/2


[Site "https://www.chess.com"]